[Event "Early Titled Tuesday Blitz | February 8 2022"]
[White "Sliwicki, Damian"]
[Black "Samaganova, Aleksandra"]
[WhiteFideId "1127128"]
[BlackFideId "13800221"]
[WhiteElo "2084"]
[BlackElo "1859"]
[Result "0-1"]
[Round "03"]
[TimeControl "180+1"]
[Date "2022.02.08"]
[WhiteClock "0:00:18"]
[BlackClock "0:00:39"]

1. e4 {[%clk 0:01:35]}  c5 {[%clk 0:02:58]} 2. Nf3 {[%clk 0:01:36]}  e6 {[%clk 0:02:58]} 3. d4 {[%clk 0:01:37]}  cxd4 {[%clk 0:02:58]} 4. Nxd4 {[%clk 0:01:37]}  a6 {[%clk 0:02:58]} 5. Nc3 {[%clk 0:01:38]}  Qc7 {[%clk 0:02:58]} 6. Nb3 {[%clk 0:01:39]}  Nf6 {[%clk 0:02:58]} 7. Bd3 {[%clk 0:01:40]}  Nc6 {[%clk 0:02:53]} 8. O-O {[%clk 0:01:31]}  Be7 {[%clk 0:02:53]} 9. f4 {[%clk 0:00:55]}  d6 {[%clk 0:02:50]} 10. Kh1 {[%clk 0:00:48]}  O-O {[%clk 0:02:49]} 11. Qf3 {[%clk 0:00:48]}  Nb4 {[%clk 0:02:42]} 12. Be3 {[%clk 0:00:46]}  Nxd3 {[%clk 0:02:33]} 13. cxd3 {[%clk 0:00:47]}  b5 {[%clk 0:02:33]} 14. e5 {[%clk 0:00:33]}  Bb7 {[%clk 0:02:27]} 15. exf6 {[%clk 0:00:33]}  Bxf3 {[%clk 0:02:26]} 16. fxe7 {[%clk 0:00:34]}  Bxg2+ {[%clk 0:02:21]} 17. Kxg2 {[%clk 0:00:35]}  Qxe7 {[%clk 0:02:19]} 18. Rae1 {[%clk 0:00:34]}  Rac8 {[%clk 0:02:08]} 19. f5 {[%clk 0:00:33]}  Qb7+ {[%clk 0:01:48]} 20. Kg1 {[%clk 0:00:17]}  exf5 {[%clk 0:01:45]} 21. Rxf5 {[%clk 0:00:18]}  b4 {[%clk 0:01:44]} 22. Nd5 {[%clk 0:00:19]}  Rfe8 {[%clk 0:01:29]} 23. Kf2 {[%clk 0:00:17]}  Rc2+ {[%clk 0:01:28]} 24. Kf3 {[%clk 0:00:17]}  Re5 {[%clk 0:01:24]} 25. Rxe5 {[%clk 0:00:12]}  dxe5 {[%clk 0:01:22]} 26. Ke4 {[%clk 0:00:13]}  Rxh2 {[%clk 0:01:15]} 27. Kxe5 {[%clk 0:00:13]}  Rh5+ {[%clk 0:01:15]} 28. Kf4 {[%clk 0:00:13]}  Rxd5 {[%clk 0:01:13]} 29. Bd4 {[%clk 0:00:13]}  h6 {[%clk 0:01:06]} 30. Be5 {[%clk 0:00:14]}  Rxd3 {[%clk 0:01:00]} 31. Nd4 {[%clk 0:00:14]}  Qg2 {[%clk 0:00:54]} 32. Bxg7 {[%clk 0:00:07]}  Qg3+ {[%clk 0:00:41]} 33. Ke4 {[%clk 0:00:07]}  Rxd4+ {[%clk 0:00:40]} 34. Bxd4 {[%clk 0:00:07]}  Qxe1+ {[%clk 0:00:40]} 35. Be3 {[%clk 0:00:07]}  Qb1+ {[%clk 0:00:39]} 36. Kd4 {[%clk 0:00:07]}  Qxb2+ {[%clk 0:00:39]} 37. Kc4 {[%clk 0:00:08]}  Qxa2+ {[%clk 0:00:39]} 38. Kxb4 {[%clk 0:00:07]}  Qd5 {[%clk 0:00:36]} 39. Bxh6 {[%clk 0:00:07]}  Qb5+ {[%clk 0:00:35]} 40. Kc3 {[%clk 0:00:06]}  a5 {[%clk 0:00:35]} 41. Be3 {[%clk 0:00:06]}  Qb4+ {[%clk 0:00:35]} 42. Kd3 {[%clk 0:00:06]}  a4 {[%clk 0:00:35]} 43. Bd4 {[%clk 0:00:07]}  Qb3+ {[%clk 0:00:35]} 44. Bc3 {[%clk 0:00:08]}  a3 {[%clk 0:00:35]} 45. Kd2 {[%clk 0:00:09]}  a2 {[%clk 0:00:35]} 46. Bd4 {[%clk 0:00:10]}  Qb1 {[%clk 0:00:34]} 47. Bc3 {[%clk 0:00:10]}  a1=Q {[%clk 0:00:34]} 48. Bxa1 {[%clk 0:00:11]}  Qxa1 {[%clk 0:00:34]} 49. Ke3 {[%clk 0:00:12]}  Qf6 {[%clk 0:00:33]} 50. Ke4 {[%clk 0:00:12]}  Kg7 {[%clk 0:00:32]} 51. Kd5 {[%clk 0:00:13]}  Qe7 {[%clk 0:00:32]} 52. Kd4 {[%clk 0:00:13]}  f5 {[%clk 0:00:33]} 53. Kd5 {[%clk 0:00:14]}  f4 {[%clk 0:00:34]} 54. Kd4 {[%clk 0:00:15]}  f3 {[%clk 0:00:35]} 55. Kd5 {[%clk 0:00:16]}  f2 {[%clk 0:00:36]} 56. Kd4 {[%clk 0:00:17]}  f1=Q {[%clk 0:00:37]} 57. Kd5 {[%clk 0:00:18]}  Qff6 {[%clk 0:00:36]} 58. Kc4 {[%clk 0:00:18]}  Qfd6 {[%clk 0:00:37]} 59. Kb5 {[%clk 0:00:18]}  Qec7 {[%clk 0:00:38]} 60. Ka4 {[%clk 0:00:18]}  Qdb6 {[%clk 0:00:39]} 0-1


[Site "https://www.chess.com"]

[Event "Early Titled Tuesday Blitz | February 8 2022"]
[White "Sorokin, Aleksey"]
[Black "De Silva, L M S T"]
[WhiteFideId "24176460"]
[BlackFideId "9953698"]
[WhiteElo "2476"]
[BlackElo "1631"]
[Result "0-1"]
[Round "03"]
[TimeControl "180+1"]
[Date "2022.02.08"]
[WhiteClock "0:00:49"]
[BlackClock "0:00:34"]

1. d4 {[%clk 0:03:00]}  Nf6 {[%clk 0:02:59]} 2. c4 {[%clk 0:02:59]}  e6 {[%clk 0:03:00]} 3. Nf3 {[%clk 0:02:59]}  b6 {[%clk 0:03:00]} 4. a3 {[%clk 0:02:59]}  Bb7 {[%clk 0:03:01]} 5. Nc3 {[%clk 0:02:59]}  Ne4 {[%clk 0:03:01]} 6. Nxe4 {[%clk 0:02:58]}  Bxe4 {[%clk 0:03:02]} 7. Bf4 {[%clk 0:02:58]}  Bb7 {[%clk 0:03:02]} 8. e3 {[%clk 0:02:55]}  d6 {[%clk 0:03:02]} 9. Bd3 {[%clk 0:02:54]}  Be7 {[%clk 0:03:01]} 10. h4 {[%clk 0:02:51]}  h6 {[%clk 0:03:00]} 11. Qe2 {[%clk 0:02:50]}  Nd7 {[%clk 0:03:00]} 12. O-O-O {[%clk 0:02:50]}  Bf6 {[%clk 0:02:58]} 13. g4 {[%clk 0:02:34]}  e5 {[%clk 0:02:54]} 14. dxe5 {[%clk 0:02:34]}  dxe5 {[%clk 0:02:55]} 15. Bf5 {[%clk 0:02:34]}  Bc6 {[%clk 0:02:29]} 16. Bxe5 {[%clk 0:02:30]}  Nxe5 {[%clk 0:02:23]} 17. Rxd8+ {[%clk 0:02:24]}  Rxd8 {[%clk 0:02:24]} 18. Nxe5 {[%clk 0:02:24]}  Bxh1 {[%clk 0:02:22]} 19. Nf3 {[%clk 0:02:14]}  Bxf3 {[%clk 0:02:21]} 20. Qxf3 {[%clk 0:02:14]}  O-O {[%clk 0:02:15]} 21. g5 {[%clk 0:02:13]}  hxg5 {[%clk 0:02:16]} 22. Bc2 {[%clk 0:01:43]}  gxh4 {[%clk 0:01:57]} 23. Qh5 {[%clk 0:01:42]}  Rfe8 {[%clk 0:01:58]} 24. Qh7+ {[%clk 0:01:36]}  Kf8 {[%clk 0:01:57]} 25. Be4 {[%clk 0:01:34]}  Ke7 {[%clk 0:01:52]} 26. Bd5 {[%clk 0:01:34]}  Rh8 {[%clk 0:01:45]} 27. Qe4+ {[%clk 0:01:33]}  Kf8 {[%clk 0:01:45]} 28. f4 {[%clk 0:01:29]}  g6 {[%clk 0:01:44]} 29. Qh1 {[%clk 0:01:27]}  h3 {[%clk 0:01:43]} 30. e4 {[%clk 0:01:27]}  Bd4 {[%clk 0:01:30]} 31. Kc2 {[%clk 0:01:24]}  h2 {[%clk 0:01:28]} 32. e5 {[%clk 0:01:23]}  Be3 {[%clk 0:01:13]} 33. Bxf7 {[%clk 0:01:12]}  Kxf7 {[%clk 0:01:10]} 34. Qc6 {[%clk 0:01:12]}  Rd2+ {[%clk 0:00:41]} 35. Kc3 {[%clk 0:01:11]}  h1=Q {[%clk 0:00:41]} 36. Qxc7+ {[%clk 0:00:53]}  Ke6 {[%clk 0:00:35]} 37. Kb3 {[%clk 0:00:49]}  Rxb2+ {[%clk 0:00:34]} 0-1


[Site "https://www.chess.com"]

[Event "Early Titled Tuesday Blitz | February 8 2022"]
[White "Srihari L R"]
[Black "Deac, Bogdan-Daniel"]
[WhiteFideId "46617116"]
[BlackFideId "1226380"]
[WhiteElo "2121"]
[BlackElo "2646"]
[Result "1-0"]
[Round "03"]
[TimeControl "180+1"]
[Date "2022.02.08"]
[WhiteClock "0:00:07"]
[BlackClock "0:00:05"]

1. d4 {[%clk 0:03:00]}  Nf6 {[%clk 0:02:59]} 2. c4 {[%clk 0:03:00]}  g6 {[%clk 0:02:59]} 3. Nc3 {[%clk 0:03:00]}  d5 {[%clk 0:02:59]} 4. cxd5 {[%clk 0:02:59]}  Nxd5 {[%clk 0:03:00]} 5. Bd2 {[%clk 0:02:59]}  c5 {[%clk 0:02:55]} 6. e4 {[%clk 0:02:54]}  Nxc3 {[%clk 0:02:54]} 7. Bxc3 {[%clk 0:02:54]}  cxd4 {[%clk 0:02:52]} 8. Qxd4 {[%clk 0:02:42]}  Qxd4 {[%clk 0:02:43]} 9. Bxd4 {[%clk 0:02:41]}  Rg8 {[%clk 0:02:43]} 10. Nf3 {[%clk 0:02:39]}  Nc6 {[%clk 0:02:42]} 11. Bc3 {[%clk 0:02:37]}  Bg7 {[%clk 0:02:31]} 12. Bxg7 {[%clk 0:02:35]}  Rxg7 {[%clk 0:02:32]} 13. Bb5 {[%clk 0:02:35]}  Bd7 {[%clk 0:02:32]} 14. O-O {[%clk 0:02:34]}  f6 {[%clk 0:02:31]} 15. Bxc6 {[%clk 0:02:20]}  Bxc6 {[%clk 0:02:30]} 16. Nd4 {[%clk 0:02:20]}  Bd7 {[%clk 0:02:27]} 17. e5 {[%clk 0:02:20]}  O-O-O {[%clk 0:02:14]} 18. Rac1+ {[%clk 0:02:14]}  Kb8 {[%clk 0:02:14]} 19. Rfd1 {[%clk 0:02:06]}  Rgg8 {[%clk 0:02:13]} 20. exf6 {[%clk 0:01:54]}  exf6 {[%clk 0:02:12]} 21. f3 {[%clk 0:01:55]}  Bc8 {[%clk 0:02:04]} 22. Kf2 {[%clk 0:01:52]}  Rd6 {[%clk 0:02:03]} 23. Ne2 {[%clk 0:01:47]}  Rb6 {[%clk 0:02:00]} 24. Rd2 {[%clk 0:01:46]}  Re8 {[%clk 0:01:58]} 25. Nc3 {[%clk 0:01:45]}  h5 {[%clk 0:01:26]} 26. Rcd1 {[%clk 0:01:42]}  Bf5 {[%clk 0:01:25]} 27. Nd5 {[%clk 0:01:36]}  Rc6 {[%clk 0:01:11]} 28. Ne3 {[%clk 0:01:29]}  Be6 {[%clk 0:01:10]} 29. a3 {[%clk 0:01:26]}  Kc8 {[%clk 0:00:56]} 30. h4 {[%clk 0:01:12]}  Bb3 {[%clk 0:00:54]} 31. Re1 {[%clk 0:01:08]}  a5 {[%clk 0:00:53]} 32. g3 {[%clk 0:00:53]}  b6 {[%clk 0:00:45]} 33. Ng2 {[%clk 0:00:52]}  Rxe1 {[%clk 0:00:44]} 34. Kxe1 {[%clk 0:00:50]}  Bf7 {[%clk 0:00:37]} 35. Kf2 {[%clk 0:00:48]}  Kc7 {[%clk 0:00:35]} 36. Nf4 {[%clk 0:00:45]}  Rc5 {[%clk 0:00:33]} 37. Nd3 {[%clk 0:00:42]}  Rb5 {[%clk 0:00:31]} 38. Nc1 {[%clk 0:00:37]}  g5 {[%clk 0:00:28]} 39. Ne2 {[%clk 0:00:35]}  Rf5 {[%clk 0:00:20]} 40. Nc3 {[%clk 0:00:25]}  b5 {[%clk 0:00:16]} 41. Ne4 {[%clk 0:00:24]}  Bd5 {[%clk 0:00:14]} 42. Ke3 {[%clk 0:00:19]}  Bc6 {[%clk 0:00:13]} 43. Rc2 {[%clk 0:00:14]}  Kb6 {[%clk 0:00:10]} 44. b4 {[%clk 0:00:13]}  axb4 {[%clk 0:00:10]} 45. axb4 {[%clk 0:00:14]}  Re5 {[%clk 0:00:08]} 46. Rc5 {[%clk 0:00:09]}  Rxc5 {[%clk 0:00:03]} 47. Nxc5 {[%clk 0:00:06]}  gxh4 {[%clk 0:00:03]} 48. gxh4 {[%clk 0:00:07]}  Kc7 {[%clk 0:00:04]} 49. Ne6+ {[%clk 0:00:06]}  Kd6 {[%clk 0:00:04]} 50. Ng7 {[%clk 0:00:06]}  Kd5 {[%clk 0:00:03]} 51. Nxh5 {[%clk 0:00:06]}  Kc4 {[%clk 0:00:03]} 52. Nxf6 {[%clk 0:00:07]}  Kxb4 {[%clk 0:00:03]} 53. h5 {[%clk 0:00:07]}  Kc3 {[%clk 0:00:02]} 54. h6 {[%clk 0:00:08]}  b4 {[%clk 0:00:03]} 55. h7 {[%clk 0:00:08]}  b3 {[%clk 0:00:04]} 56. h8=Q {[%clk 0:00:09]}  b2 {[%clk 0:00:05]} 57. Nd5+ {[%clk 0:00:08]}  Kc2 {[%clk 0:00:05]} 58. Qc3+ {[%clk 0:00:07]} 1-0


[Site "https://www.chess.com"]

[Event "Early Titled Tuesday Blitz | February 8 2022"]
[White "Sviridov, Valery"]
[Black "Manukyan, Artyom"]
[WhiteFideId "4120680"]
[BlackFideId "13305786"]
[WhiteElo "2454"]
[BlackElo "2034"]
[Result "1-0"]
[Round "03"]
[TimeControl "180+1"]
[Date "2022.02.08"]
[WhiteClock "0:01:40"]
[BlackClock "0:00:04"]

1. Nf3 {[%clk 0:03:00]}  d5 {[%clk 0:02:57]} 2. g3 {[%clk 0:03:00]}  e6 {[%clk 0:02:58]} 3. Bg2 {[%clk 0:03:01]}  Nf6 {[%clk 0:02:59]} 4. O-O {[%clk 0:03:01]}  Be7 {[%clk 0:02:59]} 5. d3 {[%clk 0:03:01]}  O-O {[%clk 0:03:00]} 6. Nbd2 {[%clk 0:03:01]}  a5 {[%clk 0:03:01]} 7. e4 {[%clk 0:03:01]}  a4 {[%clk 0:03:02]} 8. a3 {[%clk 0:03:01]}  c5 {[%clk 0:03:02]} 9. Re1 {[%clk 0:03:02]}  Nc6 {[%clk 0:03:03]} 10. e5 {[%clk 0:03:02]}  Nd7 {[%clk 0:03:03]} 11. Nf1 {[%clk 0:03:03]}  f6 {[%clk 0:03:04]} 12. exf6 {[%clk 0:03:02]}  Nxf6 {[%clk 0:03:05]} 13. c4 {[%clk 0:03:01]}  Bd7 {[%clk 0:02:59]} 14. Ng5 {[%clk 0:02:56]}  Nd4 {[%clk 0:02:53]} 15. Be3 {[%clk 0:02:27]}  Ra6 {[%clk 0:02:26]} 16. Bxd4 {[%clk 0:02:24]}  cxd4 {[%clk 0:02:26]} 17. Nd2 {[%clk 0:02:24]}  h6 {[%clk 0:02:26]} 18. Ngf3 {[%clk 0:02:22]}  dxc4 {[%clk 0:02:17]} 19. Nxc4 {[%clk 0:02:23]}  Bc5 {[%clk 0:02:17]} 20. Rc1 {[%clk 0:02:21]}  b6 {[%clk 0:01:38]} 21. Nce5 {[%clk 0:02:19]}  Be8 {[%clk 0:01:36]} 22. Nd2 {[%clk 0:02:04]}  Bh5 {[%clk 0:01:28]} 23. Qc2 {[%clk 0:02:04]}  Bd6 {[%clk 0:01:10]} 24. Qc4 {[%clk 0:02:04]}  b5 {[%clk 0:00:49]} 25. Qxe6+ {[%clk 0:02:02]}  Kh8 {[%clk 0:00:48]} 26. Qf5 {[%clk 0:01:56]}  Bxe5 {[%clk 0:00:45]} 27. Qxe5 {[%clk 0:01:57]}  Rb6 {[%clk 0:00:38]} 28. Ne4 {[%clk 0:01:54]}  Nxe4 {[%clk 0:00:36]} 29. Rxe4 {[%clk 0:01:54]}  Bg6 {[%clk 0:00:32]} 30. Rxd4 {[%clk 0:01:52]}  Qf6 {[%clk 0:00:32]} 31. Qxf6 {[%clk 0:01:52]}  Rbxf6 {[%clk 0:00:33]} 32. f4 {[%clk 0:01:52]}  Re6 {[%clk 0:00:32]} 33. Be4 {[%clk 0:01:49]}  Bh5 {[%clk 0:00:25]} 34. Rc5 {[%clk 0:01:48]}  Bg4 {[%clk 0:00:24]} 35. Rxb5 {[%clk 0:01:41]}  Rc8 {[%clk 0:00:24]} 36. Rc5 {[%clk 0:01:42]}  Rb8 {[%clk 0:00:16]} 37. Rb4 {[%clk 0:01:42]}  Rd8 {[%clk 0:00:14]} 38. Rxa4 {[%clk 0:01:42]}  Bh3 {[%clk 0:00:13]} 39. Rd4 {[%clk 0:01:40]}  Rb8 {[%clk 0:00:07]} 40. Rb4 {[%clk 0:01:40]}  Rd8 {[%clk 0:00:07]} 41. Kf2 {[%clk 0:01:40]}  h5 {[%clk 0:00:04]} 1-0


[Site "https://www.chess.com"]

[Event "Early Titled Tuesday Blitz | February 8 2022"]
[White "Tarasova, Viktoriya"]
[Black "Roebers, Jan"]
[WhiteFideId "4175840"]
[BlackFideId "1007815"]
[WhiteElo "2182"]
[BlackElo "2123"]
[Result "1-0"]
[Round "03"]
[TimeControl "180+1"]
[Date "2022.02.08"]
[WhiteClock "0:00:34"]
[BlackClock "0:00:59"]

1. d4 {[%clk 0:03:00]}  Nf6 {[%clk 0:02:59]} 2. c4 {[%clk 0:03:01]}  g6 {[%clk 0:02:59]} 3. Nc3 {[%clk 0:03:01]}  Bg7 {[%clk 0:03:00]} 4. e4 {[%clk 0:03:01]}  d6 {[%clk 0:03:00]} 5. h3 {[%clk 0:03:02]}  O-O {[%clk 0:03:00]} 6. Be3 {[%clk 0:03:01]}  e5 {[%clk 0:02:58]} 7. d5 {[%clk 0:03:01]}  a5 {[%clk 0:02:57]} 8. g4 {[%clk 0:03:00]}  Na6 {[%clk 0:02:56]} 9. Qc2 {[%clk 0:02:58]}  Nc5 {[%clk 0:02:55]} 10. O-O-O {[%clk 0:02:56]}  Bd7 {[%clk 0:02:55]} 11. f3 {[%clk 0:02:54]}  Ne8 {[%clk 0:02:50]} 12. h4 {[%clk 0:02:54]}  f5 {[%clk 0:02:49]} 13. exf5 {[%clk 0:02:40]}  gxf5 {[%clk 0:02:47]} 14. g5 {[%clk 0:02:41]}  f4 {[%clk 0:02:34]} 15. Bxc5 {[%clk 0:02:38]}  dxc5 {[%clk 0:02:33]} 16. Ne4 {[%clk 0:02:36]}  Nd6 {[%clk 0:02:32]} 17. Nxc5 {[%clk 0:02:29]}  b5 {[%clk 0:02:29]} 18. cxb5 {[%clk 0:02:26]}  e4 {[%clk 0:02:16]} 19. fxe4 {[%clk 0:02:14]}  Qe7 {[%clk 0:02:13]} 20. a4 {[%clk 0:01:36]}  Rae8 {[%clk 0:02:03]} 21. Bd3 {[%clk 0:01:24]}  Nf7 {[%clk 0:02:03]} 22. Nxd7 {[%clk 0:01:19]}  Qxd7 {[%clk 0:02:02]} 23. Nf3 {[%clk 0:01:20]}  Ne5 {[%clk 0:01:59]} 24. Nxe5 {[%clk 0:01:19]}  Bxe5 {[%clk 0:01:59]} 25. Rdf1 {[%clk 0:01:15]}  f3 {[%clk 0:01:54]} 26. Kb1 {[%clk 0:01:14]}  Qd6 {[%clk 0:01:48]} 27. Rh3 {[%clk 0:01:11]}  Qb4 {[%clk 0:01:40]} 28. Rhxf3 {[%clk 0:01:07]}  Rxf3 {[%clk 0:01:38]} 29. Rxf3 {[%clk 0:01:07]}  c5 {[%clk 0:01:30]} 30. dxc6 {[%clk 0:01:00]}  Qe1+ {[%clk 0:01:22]} 31. Ka2 {[%clk 0:00:58]}  Re7 {[%clk 0:01:19]} 32. Bc4+ {[%clk 0:00:51]}  Kg7 {[%clk 0:01:19]} 33. h5 {[%clk 0:00:43]}  h6 {[%clk 0:01:18]} 34. g6 {[%clk 0:00:41]}  Bf6 {[%clk 0:01:13]} 35. Bd5 {[%clk 0:00:38]}  Qh1 {[%clk 0:01:02]} 36. Rf5 {[%clk 0:00:36]}  Rxe4 {[%clk 0:00:59]} 37. Bxe4 {[%clk 0:00:34]}  Qg1 {[%clk 0:00:59]} 1-0


[Site "https://www.chess.com"]

[Event "Early Titled Tuesday Blitz | February 8 2022"]
[White "Tay, Junior"]
[Black "Goryachkina, Aleksandra"]
[WhiteFideId "5800439"]
[BlackFideId "4147103"]
[WhiteElo "2216"]
[BlackElo "2426"]
[Result "0-1"]
[Round "03"]
[TimeControl "180+1"]
[Date "2022.02.08"]
[WhiteClock "0:00:06"]
[BlackClock "0:00:20"]

1. Nc3 {[%clk 0:03:00]}  c5 {[%clk 0:02:57]} 2. e4 {[%clk 0:03:00]}  e6 {[%clk 0:02:56]} 3. f4 {[%clk 0:02:59]}  d5 {[%clk 0:02:55]} 4. Nf3 {[%clk 0:03:00]}  Nf6 {[%clk 0:02:51]} 5. Bb5+ {[%clk 0:02:58]}  Bd7 {[%clk 0:02:46]} 6. Qe2 {[%clk 0:02:52]}  dxe4 {[%clk 0:02:29]} 7. Nxe4 {[%clk 0:02:49]}  Nxe4 {[%clk 0:02:27]} 8. Bxd7+ {[%clk 0:02:48]}  Qxd7 {[%clk 0:02:18]} 9. Qxe4 {[%clk 0:02:47]}  Bd6 {[%clk 0:02:18]} 10. O-O {[%clk 0:02:44]}  O-O {[%clk 0:02:17]} 11. b3 {[%clk 0:02:44]}  Nc6 {[%clk 0:02:15]} 12. Bb2 {[%clk 0:02:43]}  f5 {[%clk 0:02:07]} 13. Qc4 {[%clk 0:02:34]}  Rae8 {[%clk 0:01:58]} 14. Rae1 {[%clk 0:02:24]}  h6 {[%clk 0:01:56]} 15. Kh1 {[%clk 0:02:19]}  Kh7 {[%clk 0:01:52]} 16. Ne5 {[%clk 0:02:12]}  Bxe5 {[%clk 0:01:48]} 17. Bxe5 {[%clk 0:02:07]}  Qxd2 {[%clk 0:01:38]} 18. Qxc5 {[%clk 0:01:59]}  Nxe5 {[%clk 0:01:35]} 19. Rxe5 {[%clk 0:01:50]}  Rc8 {[%clk 0:01:35]} 20. Qxa7 {[%clk 0:01:27]}  Rxc2 {[%clk 0:01:32]} 21. Rg1 {[%clk 0:01:26]}  Rfc8 {[%clk 0:01:11]} 22. Ree1 {[%clk 0:00:39]}  Rc1 {[%clk 0:00:59]} 23. Rxc1 {[%clk 0:00:22]}  Rxc1 {[%clk 0:01:00]} 24. a4 {[%clk 0:00:20]}  Rxg1+ {[%clk 0:00:52]} 25. Qxg1 {[%clk 0:00:18]}  Qxf4 {[%clk 0:00:52]} 26. Qb1 {[%clk 0:00:17]}  Qb4 {[%clk 0:00:51]} 27. h3 {[%clk 0:00:15]}  Kg6 {[%clk 0:00:51]} 28. Qd3 {[%clk 0:00:15]}  e5 {[%clk 0:00:49]} 29. Kh2 {[%clk 0:00:14]}  e4 {[%clk 0:00:49]} 30. Qe3 {[%clk 0:00:13]}  Kf6 {[%clk 0:00:47]} 31. Qg3 {[%clk 0:00:08]}  g5 {[%clk 0:00:41]} 32. Qc7 {[%clk 0:00:06]}  Qxb3 {[%clk 0:00:33]} 33. Qd8+ {[%clk 0:00:05]}  Ke5 {[%clk 0:00:30]} 34. Qh8+ {[%clk 0:00:04]}  Kf4 {[%clk 0:00:28]} 35. Qxh6 {[%clk 0:00:05]}  e3 {[%clk 0:00:21]} 36. a5 {[%clk 0:00:06]}  e2 {[%clk 0:00:20]} 37. g3+ {[%clk 0:00:07]}  Qxg3+ {[%clk 0:00:19]} 38. Kh1 {[%clk 0:00:06]}  e1=Q# {[%clk 0:00:20]} 0-1


[Site "https://www.chess.com"]

[Event "Early Titled Tuesday Blitz | February 8 2022"]
[White "Terletsky, Oleg"]
[Black "Flis, Pawel"]
[WhiteFideId "14116774"]
[BlackFideId "1112864"]
[WhiteElo "2050"]
[BlackElo "1735"]
[Result "1-0"]
[Round "03"]
[TimeControl "180+1"]
[Date "2022.02.08"]
[WhiteClock "0:00:09"]
[BlackClock "0:00:04"]

1. e4 {[%clk 0:03:00]}  c5 {[%clk 0:02:59]} 2. Nf3 {[%clk 0:03:00]}  d6 {[%clk 0:02:59]} 3. d4 {[%clk 0:03:00]}  Nf6 {[%clk 0:03:00]} 4. Nc3 {[%clk 0:02:59]}  cxd4 {[%clk 0:03:00]} 5. Nxd4 {[%clk 0:03:00]}  a6 {[%clk 0:03:00]} 6. Bc4 {[%clk 0:02:59]}  e6 {[%clk 0:03:00]} 7. O-O {[%clk 0:02:59]}  b5 {[%clk 0:03:00]} 8. Bb3 {[%clk 0:02:58]}  Be7 {[%clk 0:03:00]} 9. a4 {[%clk 0:02:58]}  b4 {[%clk 0:02:59]} 10. Na2 {[%clk 0:02:59]}  Nxe4 {[%clk 0:02:55]} 11. Nxb4 {[%clk 0:02:58]}  d5 {[%clk 0:02:54]} 12. Nbc6 {[%clk 0:02:42]}  Nxc6 {[%clk 0:02:53]} 13. Nxc6 {[%clk 0:02:43]}  Qc7 {[%clk 0:02:53]} 14. Nxe7 {[%clk 0:02:43]}  Qxe7 {[%clk 0:02:54]} 15. c4 {[%clk 0:02:43]}  O-O {[%clk 0:02:44]} 16. cxd5 {[%clk 0:02:41]}  exd5 {[%clk 0:02:42]} 17. Bxd5 {[%clk 0:02:33]}  Bb7 {[%clk 0:02:42]} 18. Bxb7 {[%clk 0:02:13]}  Qxb7 {[%clk 0:02:42]} 19. Qf3 {[%clk 0:02:06]}  Qb4 {[%clk 0:02:36]} 20. Be3 {[%clk 0:01:49]}  Nd2 {[%clk 0:02:27]} 21. Bxd2 {[%clk 0:01:33]}  Qxd2 {[%clk 0:02:27]} 22. Rab1 {[%clk 0:01:15]}  Rab8 {[%clk 0:02:24]} 23. Rfd1 {[%clk 0:01:12]}  Qb4 {[%clk 0:02:08]} 24. b3 {[%clk 0:01:08]}  Rfe8 {[%clk 0:02:07]} 25. g3 {[%clk 0:01:03]}  h6 {[%clk 0:02:05]} 26. Rd7 {[%clk 0:00:58]}  Re1+ {[%clk 0:02:00]} 27. Rxe1 {[%clk 0:00:56]}  Qxe1+ {[%clk 0:02:01]} 28. Kg2 {[%clk 0:00:56]}  Qe6 {[%clk 0:02:01]} 29. Rb7 {[%clk 0:00:32]}  Re8 {[%clk 0:01:44]} 30. a5 {[%clk 0:00:30]}  f6 {[%clk 0:01:28]} 31. b4 {[%clk 0:00:27]}  Rd8 {[%clk 0:00:56]} 32. h3 {[%clk 0:00:25]}  Kh7 {[%clk 0:00:49]} 33. h4 {[%clk 0:00:23]}  Rd4 {[%clk 0:00:42]} 34. Rb6 {[%clk 0:00:19]}  Qd7 {[%clk 0:00:29]} 35. h5 {[%clk 0:00:19]}  Rd5 {[%clk 0:00:18]} 36. Rxa6 {[%clk 0:00:16]}  f5 {[%clk 0:00:09]} 37. Rb6 {[%clk 0:00:14]}  Rd3 {[%clk 0:00:07]} 38. Qb7 {[%clk 0:00:12]}  Qd4 {[%clk 0:00:04]} 39. Qc6 {[%clk 0:00:09]} 1-0


[Site "https://www.chess.com"]

[Event "Early Titled Tuesday Blitz | February 8 2022"]
[White "Todorovic, Bojan"]
[Black "Samarth, J Rao"]
[WhiteFideId "917087"]
[BlackFideId "46652370"]
[WhiteElo "2266"]
[BlackElo "1514"]
[Result "1-0"]
[Round "03"]
[TimeControl "180+1"]
[Date "2022.02.08"]
[WhiteClock "0:00:05"]
[BlackClock "0:00:02"]

1. Nf3 {[%clk 0:03:00]}  Nf6 {[%clk 0:02:59]} 2. c4 {[%clk 0:03:00]}  e6 {[%clk 0:02:59]} 3. g3 {[%clk 0:02:57]}  d5 {[%clk 0:02:59]} 4. Bg2 {[%clk 0:02:57]}  Be7 {[%clk 0:02:58]} 5. O-O {[%clk 0:02:56]}  O-O {[%clk 0:02:58]} 6. b3 {[%clk 0:02:55]}  b6 {[%clk 0:02:58]} 7. Bb2 {[%clk 0:02:55]}  Bb7 {[%clk 0:02:58]} 8. d4 {[%clk 0:02:42]}  dxc4 {[%clk 0:02:57]} 9. bxc4 {[%clk 0:02:42]}  c5 {[%clk 0:02:57]} 10. Nbd2 {[%clk 0:02:26]}  Na6 {[%clk 0:02:55]} 11. e3 {[%clk 0:02:05]}  Qc7 {[%clk 0:02:52]} 12. Rc1 {[%clk 0:02:02]}  Rfd8 {[%clk 0:02:49]} 13. Qb3 {[%clk 0:01:58]}  Rac8 {[%clk 0:02:46]} 14. Rfd1 {[%clk 0:01:55]}  Ne4 {[%clk 0:02:43]} 15. Nxe4 {[%clk 0:01:50]}  Bxe4 {[%clk 0:02:43]} 16. d5 {[%clk 0:01:45]}  exd5 {[%clk 0:02:30]} 17. cxd5 {[%clk 0:01:45]}  Nb4 {[%clk 0:02:25]} 18. d6 {[%clk 0:01:24]}  Rxd6 {[%clk 0:02:13]} 19. Ne5 {[%clk 0:01:12]}  Bxg2 {[%clk 0:02:11]} 20. Qxf7+ {[%clk 0:01:09]}  Kh8 {[%clk 0:02:05]} 21. Kxg2 {[%clk 0:00:56]}  Rf6 {[%clk 0:01:45]} 22. Qh5 {[%clk 0:00:39]}  Rcf8 {[%clk 0:01:33]} 23. f4 {[%clk 0:00:37]}  Bd6 {[%clk 0:01:24]} 24. Ng4 {[%clk 0:00:30]}  Re6 {[%clk 0:01:16]} 25. Kf2 {[%clk 0:00:23]}  c4 {[%clk 0:01:13]} 26. Qg5 {[%clk 0:00:21]}  Qf7 {[%clk 0:00:57]} 27. Nh6 {[%clk 0:00:17]}  Rxh6 {[%clk 0:00:44]} 28. Qxh6 {[%clk 0:00:15]}  Bc5 {[%clk 0:00:20]} 29. Rxc4 {[%clk 0:00:13]}  Kg8 {[%clk 0:00:15]} 30. Qg5 {[%clk 0:00:11]}  Be7 {[%clk 0:00:13]} 31. Qe5 {[%clk 0:00:10]}  Bf6 {[%clk 0:00:13]} 32. Qe4 {[%clk 0:00:11]}  Bxb2 {[%clk 0:00:13]} 33. Rxb4 {[%clk 0:00:08]}  Qxa2 {[%clk 0:00:13]} 34. Rd2 {[%clk 0:00:07]}  Qa3 {[%clk 0:00:12]} 35. Qc4+ {[%clk 0:00:07]}  Kh8 {[%clk 0:00:11]} 36. Rbxb2 {[%clk 0:00:07]}  Qe7 {[%clk 0:00:09]} 37. Re2 {[%clk 0:00:07]}  Qd7 {[%clk 0:00:09]} 38. e4 {[%clk 0:00:07]}  Qh3 {[%clk 0:00:09]} 39. Kg1 {[%clk 0:00:06]}  Qg4 {[%clk 0:00:07]} 40. Re1 {[%clk 0:00:05]}  Qf3 {[%clk 0:00:06]} 41. Rf2 {[%clk 0:00:05]}  Qa3 {[%clk 0:00:06]} 42. e5 {[%clk 0:00:05]}  Re8 {[%clk 0:00:05]} 43. Qe4 {[%clk 0:00:05]}  Qc5 {[%clk 0:00:04]} 44. f5 {[%clk 0:00:05]}  a6 {[%clk 0:00:05]} 45. Kg2 {[%clk 0:00:05]}  b5 {[%clk 0:00:05]} 46. f6 {[%clk 0:00:05]}  gxf6 {[%clk 0:00:05]} 47. Rxf6 {[%clk 0:00:05]}  b4 {[%clk 0:00:04]} 48. Qf3 {[%clk 0:00:05]}  Rxe5 {[%clk 0:00:02]} 49. Rf8+ {[%clk 0:00:05]} 1-0


[Site "https://www.chess.com"]